bitfinex-derivatives/quotes_SOLF0:USTF0_20251002
["timestamp","ask_amount","ask_price","bid_price","bid_amount"]
[1759370117938,1.71522693,222.92,222.85,13.50162693]
[1759370118639,1.71522693,222.92,222.86,4.0362]
[1759370119336,1.71522693,222.92,222.85,9.46522693]
[1759370119536,1.71522693,222.92,222.85,7.75]
[1759370120247,1.71522693,222.92,222.85,11.7864]
[1759370120732,1.71522693,222.92,222.85,13.50162693]
[1759370120938,1.71522693,222.92,222.88,7.75]
[1759370121138,1.71522693,222.92,222.87,4.0362]
[1759370121340,1.71522693,222.92,222.88,7.36]
[1759370121539,9.65522693,222.92,222.88,7.36]
[1759370122535,1.71522693,222.92,222.85,1.71522693]
[1759370122742,12.9448632,222.95,222.85,1.71522693]
[1759370122743,1.71522693,222.94,222.86,7.36]
[1759370123137,1.71522693,222.94,222.88,4.0359]
[1759370123739,12.9448632,222.95,222.88,4.0359]
[1759370123740,7.94,222.95,222.88,7.9]
[1759370124137,3.14025368,222.94,222.88,7.9]
[1759370124339,3.14025368,222.93,222.87,1.71522693]
[1759370124546,3.14025368,222.92,222.9,4.0356]
[1759370124740,7.94,222.95,222.91,7.9]
[1759370124940,3.13959892,222.94,222.91,7.9]
[1759370125141,3.13959892,222.93,222.91,7.9]
[1759370125341,3.13959892,222.92,222.91,7.9]
[1759370130653,1.71522693,222.97,222.92,4.0353]
[1759370130851,3.13871946,222.96,222.93,7.9]
[1759370131051,3.13871946,222.95,222.93,7.9]
[1759370131349,3.13871946,222.94,222.93,7.9]
[1759370131749,3.13871946,222.94,222.9,5.75092693]
[1759370131951,3.13871946,222.93,222.9,5.75092693]
[1759370132151,1.71522693,222.97,222.91,7.9]
[1759370132346,10.93785853,222.96,222.88,11.936]
[1759370132555,4.85308546,222.95,222.88,9.61522693]
[1759370132749,3.13785853,222.94,222.88,9.61522693]
[1759370132955,3.13785853,222.93,222.89,7.9]
[1759370133150,3.13785853,222.92,222.89,7.9]
[1759370133351,3.13785853,222.91,222.9,7.9]
[1759370134249,7.8,222.96,222.92,7.9]
[1759370134449,3.13802063,222.95,222.92,7.9]
[1759370134649,3.13802063,222.94,222.92,7.9]
[1759370134851,3.13802063,222.93,222.92,7.9]
[1759370136355,7.8,222.99,222.92,7.9]
[1759370136356,9.51522693,222.99,222.92,7.9]
[1759370136549,3.13753955,222.98,222.92,7.9]
[1759370136761,1.71522693,222.95,222.86,11.9362]
[1759370137060,1.71522693,222.93,222.86,13.65142693]
[1759370137256,3.13753955,222.92,222.86,13.65142693]
[1759370137450,3.13753955,222.91,222.86,5.75142693]
[1759370137660,3.13753955,222.9,222.87,7.9]
[1759370137856,1.71522693,222.94,222.87,7.9]
[1759370138049,3.13824472,222.93,222.88,1.71522693]
[1759370138254,3.13824472,222.92,222.89,7.9]
[1759370138455,3.13824472,222.91,222.89,7.9]
[1759370138654,3.13824472,222.9,222.89,7.9]
[1759370141054,1.71522693,222.95,222.89,7.9]
[1759370141261,7.8,222.93,222.89,7.9]
[1759370141457,3.13873436,222.92,222.89,7.9]
[1759370141653,3.13873436,222.91,222.89,7.9]
[1759370141857,3.13873436,222.9,222.89,7.9]
[1759370142453,7.8,222.93,222.89,7.9]
[1759370142650,10.93918539,222.92,222.89,7.9]
[1759370142854,3.13918539,222.91,222.88,5.75122693]
[1759370143055,3.13918539,222.9,222.88,13.65122693]
[1759370143255,7.8,222.92,222.89,7.9]
[1759370143458,3.13919513,222.91,222.89,7.9]
[1759370143658,3.13919513,222.9,222.89,7.9]
[1759370144357,13.54982693,222.96,222.89,7.9]
[1759370144557,3.13918225,222.95,222.89,7.9]
[1759370144862,10.93918225,222.94,222.89,7.9]
[1759370145154,3.13918225,222.93,222.89,7.9]
[1759370145359,3.13918225,222.92,222.9,7.9]
[1759370145562,3.13918225,222.91,222.9,9.61522693]
[1759370145763,3.13918225,222.91,222.9,7.9]
[1759370145960,3.13918225,222.91,222.9,9.61522693]
[1759370147259,7.8,222.97,222.91,4.0354]
[1759370147458,10.93930901,222.96,222.91,4.0354]
[1759370147759,3.13930901,222.95,222.92,7.9]
[1759370148059,3.13930901,222.94,222.92,7.9]
[1759370148265,3.13930901,222.93,222.92,7.9]
[1759370150664,3.13930901,222.93,222.91,4.0354]
[1759370150865,3.12667985,222.92,222.91,4.0354]
[1759370151759,3.12667985,222.92,222.9,7.9]
[1759370151960,7.8,222.96,222.9,7.9]
[1759370152164,7.8,222.94,222.9,7.9]
[1759370152467,3.12713141,222.93,222.9,7.9]
[1759370152766,3.12713141,222.92,222.9,7.9]
[1759370152968,11.8344,222.98,222.91,4.0355]
[1759370153169,3.12750205,222.97,222.91,4.0355]
[1759370153369,7.8,222.95,222.91,4.0355]
[1759370153563,3.12750205,222.94,222.91,4.0355]
[1759370153867,3.12750205,222.93,222.91,11.8955]
[1759370154062,3.12750205,222.92,222.91,11.8955]
[1759370154367,2.05e-06,222.92,222.91,11.8955]
[1759370154562,7.88,222.99,222.96,7.86]
[1759370154767,7.88,223.01,222.95,4.0348]
[1759370155771,7.88,223.01,222.92,11.8952]
[1759370157065,12.8848632,223.01,222.92,11.8952]
[1759370157565,12.8848632,223.01,222.94,4.0349]
[1759370159268,7.88,223.01,222.94,4.0349]
[1759370159569,12.8848632,223.02,222.96,4.0345]
[1759370160367,12.8848632,223.02,222.94,11.8949]
[1759370161369,12.8848632,223.02,222.9,86.22]
[1759370161570,7.88,223.01,222.91,7.86]
[1759370162272,9.0383632,223.02,222.91,11.8955]
[1759370162471,7.88,223.0,222.91,11.8955]
[1759370163071,7.88,223.0,222.86,7.86]
[1759370163072,2.67683145,222.96,222.86,7.86]
[1759370163371,7.88,222.95,222.82,7.86]
[1759370163574,7.88,222.92,222.82,7.86]
[1759370164168,7.88,222.92,222.83,4.0369]
[1759370166374,3.10913136,222.91,222.83,4.0369]
[1759370166670,3.10913136,222.9,222.82,7.86]
[1759370166872,7.88,222.88,222.79,40.67361773]
[1759370167071,7.88,222.86,222.79,36.63611773]
[1759370167272,10.98913136,222.86,222.79,36.63611773]
[1759370168077,10.98913136,222.86,222.81,4.0373]
[1759370168570,10.98913136,222.86,222.79,36.63611773]
[1759370169181,10.98913136,222.86,222.8,4.0374]
[1759370169774,10.98913136,222.86,222.79,6.05611773]
[1759370170473,10.98913136,222.86,222.79,10.09371773]
[1759370175477,10.98913136,222.86,222.78,10.53683145]
[1759370176274,7.88,222.91,222.85,8.0457]
[1759370176475,3.10302256,222.9,222.85,0.1857]
[1759370176778,3.10302256,222.89,222.86,7.86]
[1759370176976,3.10288216,222.94,222.86,7.86]
[1759370177172,3.10302663,222.93,222.86,7.86]
[1759370177379,3.10302663,222.92,222.86,11.8964]
[1759370177576,3.10302663,222.91,222.86,4.0364]
[1759370177777,3.10302663,222.9,222.85,0.1857]
[1759370177976,7.88,222.95,222.88,7.86]
[1759370178177,3.10284757,222.94,222.88,11.896]
[1759370178381,3.10284757,222.93,222.89,7.86]
[1759370178679,3.10284757,222.92,222.88,4.036]
[1759370178977,7.88,222.95,222.89,7.86]
[1759370179178,3.10259621,222.94,222.88,11.896]
[1759370179372,3.10259621,222.93,222.88,4.036]
[1759370179570,10.98259621,222.92,222.86,2.67683145]
[1759370179770,3.10259621,222.91,222.87,7.86]
[1759370179971,7.88,222.91,222.87,7.86]
[1759370181177,4.0344,222.98,222.86,2.67683145]
[1759370181178,7.63,222.93,222.86,2.67683145]
[1759370181382,7.63,222.91,222.85,0.1857]
[1759370181583,10.73288089,222.9,222.86,7.78]
[1759370181879,7.63,222.9,222.86,7.78]
[1759370183177,7.63,222.9,222.85,0.1857]
[1759370183383,3.102977,222.89,222.85,0.1857]
[1759370183582,7.68,222.9,222.86,7.78]
[1759370184085,7.68,222.93,222.85,11.5923]
[1759370184280,3.10307562,222.92,222.85,11.5923]
[1759370184479,7.68,222.93,222.85,11.5923]
[1759370184480,3.10307562,222.91,222.85,11.5923]
[1759370184685,3.10307562,222.9,222.86,7.37]
[1759370184883,7.68,222.93,222.86,7.37]
[1759370185184,3.10286558,222.92,222.86,7.37]
[1759370185383,10.78286558,222.91,222.86,7.37]
[1759370185586,3.10286558,222.9,222.85,4.2223]
[1759370185886,7.68,222.91,222.86,7.37]
[1759370186081,3.10285869,222.9,222.86,7.37]
[1759370186283,7.68,222.91,222.86,7.37]
[1759370186575,3.10285679,222.9,222.86,7.37]
[1759370186775,7.68,222.91,222.86,7.37]
[1759370186977,3.1028581,222.9,222.86,7.37]
[1759370187182,7.68,222.94,222.86,7.37]
[1759370187386,3.10285667,222.93,222.86,7.37]
[1759370187589,3.10285667,222.92,222.86,7.37]
[1759370187784,7.68,222.94,222.85,4.2223]
[1759370187785,10.78285667,222.91,222.85,4.2223]
[1759370188081,10.78285667,222.9,222.86,7.37]
[1759370188286,3.10285667,222.89,222.86,7.37]
[1759370188487,3.10285667,222.88,222.86,7.37]
[1759370188786,7.68,222.9,222.86,7.37]
[1759370188982,3.18657272,222.89,222.85,4.2223]
[1759370189188,3.18657272,222.88,222.86,7.37]
[1759370189391,7.68,222.93,222.86,7.37]
[1759370189688,10.86646339,222.92,222.85,0.1857]
[1759370189991,7.68,222.9,222.85,0.1857]
[1759370190191,3.18646339,222.89,222.85,0.1857]
[1759370190390,3.18646339,222.88,222.85,0.1857]
[1759370190584,7.68,222.86,222.85,0.1857]
[1759370190790,10.86646339,222.86,222.85,0.1857]
[1759370191391,3.18646339,222.86,222.85,0.1857]
[1759370192994,3.18646339,222.86,222.85,7.5557]
[1759370193190,3.18628468,222.92,222.85,0.1857]
[1759370193391,10.86628468,222.91,222.85,0.1857]
[1759370193696,7.68,222.89,222.85,0.1857]
[1759370193885,7.68,222.87,222.85,0.1857]
[1759370194090,7.68,222.92,222.85,0.1857]
[1759370194291,3.18642366,222.91,222.85,0.1857]
[1759370194491,7.68,222.89,222.85,0.1857]
[1759370194692,7.68,222.87,222.85,0.1857]
[1759370196599,7.68,222.93,222.85,0.1857]
[1759370196794,7.68,222.91,222.85,0.1857]
[1759370197092,3.18669754,222.9,222.85,0.1857]
[1759370197291,7.68,222.88,222.85,0.1857]
[1759370197492,7.68,222.86,222.85,0.1857]
[1759370199206,7.68,222.93,222.85,0.1857]
[1759370199511,3.18716096,222.92,222.86,7.37]
[1759370199695,3.18716096,222.91,222.87,11.4062]
[1759370199894,7.68,222.94,222.87,11.4062]
[1759370200100,3.18660055,222.93,222.87,7.37]
[1759370200298,3.18660055,222.92,222.86,7.37]
[1759370200594,3.18660055,222.91,222.86,7.37]
[1759370200800,7.68,222.94,222.86,7.37]
[1759370200993,3.18696538,222.93,222.86,7.37]
[1759370201194,10.86696538,222.92,222.85,0.1857]
[1759370201394,7.68,222.9,222.85,0.1857]
[1759370201597,7.68,222.88,222.85,0.1857]
[1759370201797,7.68,222.95,222.85,7.5557]
[1759370201993,7.68,222.93,222.85,0.1857]
[1759370202192,7.68,222.91,222.85,0.1857]
[1759370202399,3.18766619,222.9,222.85,0.1857]
[1759370202699,10.86766619,222.89,222.85,4.2221]
[1759370202892,7.68169465,222.97,222.85,4.2221]
[1759370203098,10.8681501,222.96,222.85,4.2221]
[1759370203294,7.68,222.94,222.85,4.2221]
[1759370203498,7.68,222.92,222.85,4.2221]
[1759370203797,3.1881501,222.91,222.85,4.2221]
[1759370204000,7.68,222.89,222.85,4.2221]
[1759370204198,7.68,222.89,222.87,4.0362]
[1759370204403,3.18946196,222.88,222.87,4.0362]
[1759370204898,3.18946196,222.88,222.85,0.1857]
[1759370205103,7.68,222.95,222.85,0.1857]
[1759370205303,7.68,222.93,222.85,0.1857]
[1759370205497,3.18959232,222.92,222.86,4.0364]
[1759370205802,3.18959232,222.91,222.86,4.0364]
[1759370205996,3.18959232,222.9,222.86,4.0364]
[1759370206192,7.68,222.88,222.86,4.0364]
[1759370206393,3.18959232,222.87,222.86,4.0364]
[1759370208807,3.18959232,222.87,222.86,11.4064]
[1759370209208,3.18959232,222.87,222.86,4.0364]
[1759370209508,10.86959232,222.87,222.86,4.0364]
[1759370209903,3.18959232,222.87,222.86,4.0364]
[1759370210606,3.18959232,222.87,222.85,0.1857]
[1759370210807,7.68,222.87,222.85,0.1857]
[1759370211006,7.68,222.93,222.85,0.1857]
[1759370211211,7.68,222.91,222.85,0.1857]
[1759370211411,7.68,222.89,222.85,0.1857]
[1759370211605,7.68,222.87,222.85,0.1857]
[1759370211800,10.87219142,222.86,222.85,0.1857]
[1759370216310,3.19219142,222.86,222.85,4.2223]
[1759370216512,10.56219142,222.86,222.85,4.2223]
[1759370216713,3.19219142,222.86,222.85,4.2223]
[1759370217416,3.19219142,222.86,222.85,12.1023]
[1759370217710,3.19219142,222.86,222.85,4.2223]
[1759370218308,10.56219142,222.86,222.85,4.2223]
[1759370218508,3.19219142,222.86,222.85,4.2223]
[1759370219419,10.56219142,222.86,222.85,4.2223]
[1759370219611,10.56219142,222.86,222.85,0.1857]
[1759370220307,7.37,222.86,222.85,4.2223]
[1759370220507,10.49438106,222.86,222.85,0.1857]
[1759370221721,10.49438106,222.86,222.78,7.88]
[1759370222016,10.49438106,222.85,222.78,7.88]
[1759370222314,7.37,222.83,222.8,4.0373]
[1759370224314,7.37,222.83,222.81,4.0371]
[1759370224814,9.08484688,222.88,222.8,7.88]
[1759370225014,3.12401122,222.87,222.81,1.71484688]
[1759370225213,10.49401122,222.86,222.82,7.88]
[1759370225412,3.12401122,222.85,222.82,7.88]
[1759370225613,3.12401122,222.84,222.82,7.88]
[1759370225816,7.37,222.86,222.77,7.88]
[1759370226015,7.37,222.84,222.78,1.71484688]
[1759370226210,7.37,222.82,222.78,9.59484688]
[1759370226416,7.37,222.82,222.78,1.71484688]
[1759370226614,7.37,222.82,222.79,7.88]
[1759370227216,7.37,222.82,222.78,1.71484688]
[1759370227414,1.71484688,222.86,222.75,165.6194]
[1759370227714,3.12356202,222.85,222.79,4.0376]
[1759370228019,7.37,222.83,222.79,11.9176]
[1759370228319,1.71484688,222.88,222.81,4.0373]
[1759370228522,10.49335925,222.87,222.8,7.88]
[1759370228819,3.12335925,222.86,222.8,7.88]
[1759370229013,10.49335925,222.85,222.81,7.88]
[1759370229217,10.49335925,222.84,222.81,7.88]
[1759370229416,3.12335925,222.83,222.81,7.88]
[1759370229616,7.37,222.84,222.81,7.88]
[1759370229813,3.12320901,222.83,222.81,7.88]
[1759370230017,7.37,222.87,222.82,4.0371]
[1759370230213,7.37,222.85,222.82,4.0371]
[1759370230420,3.12319993,222.84,222.82,4.0371]
[1759370230615,1.71484688,222.88,222.79,1.71484688]
[1759370230816,3.12315455,222.87,222.82,7.88]
[1759370231023,7.37,222.9,222.84,1.71484688]
[1759370231225,7.37,222.88,222.85,4.0364]
[1759370231417,10.49272606,222.87,222.83,1.71484688]
[1759370231613,13.34505675,223.05,222.84,7.88]
[1759370231614,7.37,222.9,222.84,7.88]
[1759370231814,7.37,222.88,222.84,7.88]
[1759370232020,3.12263608,222.87,222.84,7.88]
[1759370232215,7.37,222.88,222.85,4.0366]
[1759370232424,3.12271188,222.87,222.85,11.9166]
[1759370232619,7.37,222.88,222.85,4.0366]
[1759370232820,10.49271137,222.87,222.82,4.037]
[1759370233020,10.49292574,222.86,222.82,9.59484688]
[1759370233219,7.37,222.86,222.82,9.59484688]
[1759370233713,1.71484688,222.88,222.81,4.0373]
[1759370233920,3.12302054,222.87,222.81,4.0373]
[1759370234119,7.37,222.85,222.81,4.0373]
[1759370234321,7.37,222.83,222.81,4.0373]
[1759370234619,7.37,222.83,222.78,11.9177]
[1759370234920,7.37,222.85,222.78,1.71484688]
[1759370235118,7.37,222.85,222.77,111.1]
[1759370235119,3.12350729,222.84,222.8,1.71484688]
[1759370235325,7.37,222.85,222.81,7.88]
[1759370235623,3.12333831,222.84,222.81,7.88]
[1759370235823,7.37,222.85,222.81,7.88]
[1759370236022,3.12324102,222.84,222.81,7.88]
[1759370236325,7.37,222.85,222.81,7.88]
[1759370236526,3.12321435,222.84,222.81,7.88]
[1759370236738,7.37,222.85,222.81,7.88]
[1759370236921,3.12321429,222.84,222.81,7.88]
[1759370237122,7.37,222.85,222.81,7.88]
[1759370237322,3.12313082,222.84,222.81,7.88]
[1759370237527,7.37,222.85,222.81,7.88]
[1759370237727,3.12317062,222.84,222.81,7.88]
[1759370237928,7.37,222.84,222.8,5.75234688]
[1759370238824,7.37,222.84,222.8,13.63234688]
[1759370239023,7.37,222.84,222.82,4.0371]
[1759370241026,1.71484688,222.87,222.82,4.0371]
[1759370241331,7.32,222.85,222.82,4.0371]
[1759370241531,7.32,222.85,222.82,11.9871]
[1759370242230,7.32,222.85,222.81,7.95]
[1759370243327,7.32,222.87,222.8,1.71484688]
[1759370243524,3.12287631,222.86,222.8,1.71484688]
[1759370243731,7.92,222.84,222.81,4.0373]
[1759370243924,7.92,222.84,222.81,11.9073]
[1759370245831,7.92,222.84,222.81,13.62214688]
[1759370246031,7.92,222.84,222.82,4.037]
[1759370247130,1.71484688,222.88,222.82,4.037]
[1759370247338,3.12423374,222.87,222.82,4.037]
[1759370247526,7.92,222.85,222.82,4.037]
[1759370247726,7.92,222.85,222.83,4.0368]
[1759370248632,1.71484688,222.89,222.83,4.0368]
[1759370248837,3.10291992,222.88,222.83,4.0368]
[1759370249038,3.10291992,222.87,222.83,4.0368]
[1759370249235,7.92,222.85,222.83,4.0368]
[1759370251239,7.92,222.88,222.83,4.0368]
[1759370251439,3.10351593,222.87,222.83,4.0368]
[1759370251634,7.92,222.85,222.83,4.0368]
[1759370251935,3.10351643,222.84,222.73,68.71364978]
[1759370252135,3.10351643,222.83,222.77,9.58484688]
[1759370252335,3.10351643,222.82,222.8,1.71484688]
[1759370252534,7.92,222.84,222.8,1.71484688]
[1759370252739,11.02392059,222.83,222.8,1.71484688]
[1759370252935,11.02392059,222.83,222.8,13.62214688]
[1759370252936,7.92,222.83,222.8,13.62214688]
[1759370253140,3.10396299,222.82,222.8,13.62214688]
[1759370253334,7.92,222.9,222.8,1.71484688]
[1759370253539,7.92,222.88,222.79,7.87]
[1759370253741,3.10388064,222.87,222.81,1.71484688]
[1759370253936,7.92,222.85,222.81,4.0373]
[1759370254136,11.02388064,222.84,222.81,11.9073]
[1759370254342,11.02388064,222.83,222.77,9.58484688]
[1759370254542,7.92,222.83,222.81,4.0373]
[1759370255544,7.92,222.85,222.83,4.0369]
[1759370255742,3.10455698,222.84,222.83,4.0369]
[1759370258937,3.10455698,222.84,222.83,11.9069]
[1759370259138,3.10455698,222.84,222.83,4.0369]
[1759370262346,3.10455698,222.84,222.83,11.9069]
[1759370262541,1.71484688,222.91,222.85,4.0365]
[1759370262741,7.92,222.89,222.85,11.9065]
[1759370262947,11.0246498,222.88,222.85,11.9065]
[1759370263146,3.1046498,222.87,222.85,11.9065]
[1759370263348,3.10447852,222.86,222.85,11.9065]
[1759370263745,1.71484688,222.91,222.85,11.9065]
[1759370264047,7.92,222.89,222.85,11.9065]
[1759370264246,3.1043813,222.88,222.85,11.9065]
[1759370264447,3.1043813,222.87,222.85,11.9065]
[1759370264647,7.92,222.89,222.85,11.9065]
[1759370264844,3.10406304,222.88,222.85,11.9065]
[1759370265148,3.10406304,222.87,222.85,11.9065]
[1759370265350,7.92,222.89,222.85,11.9065]
[1759370265550,3.10377639,222.88,222.85,11.9065]
[1759370265750,3.10377639,222.87,222.85,11.9065]
[1759370266052,9.63484688,222.94,222.86,9.58484688]
[1759370266253,3.10373301,222.93,222.86,9.58484688]
[1759370266547,3.10373301,222.92,222.89,4.0358]
[1759370266757,11.02373301,222.91,222.89,4.0358]
[1759370266952,3.10373301,222.9,222.89,4.0358]
[1759370269651,3.10373301,222.9,222.86,11.9064]
[1759370269856,11.02373301,222.89,222.85,7.87]
[1759370270057,3.10373301,222.88,222.85,7.87]
[1759370270250,3.1023252,222.87,222.81,1.71484688]
[1759370270449,3.1023252,222.86,222.82,7.87]
[1759370270654,7.92,222.88,222.82,7.87]
[1759370270954,1.71484688,222.9,222.85,7.87]
[1759370270955,3.10242301,222.87,222.85,7.87]
[1759370271155,3.10242301,222.86,222.85,7.87]
[1759370271650,7.92,222.89,222.84,4.0368]
[1759370271850,3.10243557,222.88,222.85,7.87]
[1759370272056,3.10243557,222.87,222.85,7.87]
[1759370272257,7.92,222.89,222.85,7.87]
[1759370272458,3.10249893,222.88,222.85,7.87]
[1759370272756,3.10249893,222.87,222.85,7.87]
[1759370272959,7.92,222.89,222.85,7.87]
[1759370273259,3.10249893,222.88,222.85,7.87]
[1759370273457,3.10249893,222.87,222.85,7.87]
[1759370273658,7.92,222.89,222.85,7.87]
[1759370273859,3.1025893,222.88,222.85,7.87]
[1759370274059,7.92,222.89,222.85,7.87]
[1759370274262,10.52239448,222.88,222.85,7.87]
[1759370274457,3.10239448,222.87,222.85,7.87]
[1759370274658,7.42,222.88,222.85,7.87]
[1759370274859,3.10235734,222.87,222.85,7.87]
[1759370275056,7.42,222.88,222.85,7.87]
[1759370275257,3.10235734,222.87,222.85,7.87]
[1759370275562,7.42,222.88,222.85,7.87]
[1759370275762,3.1023814,222.87,222.85,7.87]
[1759370276060,7.42,222.88,222.85,7.87]
[1759370276263,3.1023819,222.87,222.85,7.87]
[1759370276462,7.42,222.88,222.85,7.87]
[1759370276758,10.52231811,222.87,222.81,4.0372]
[1759370276962,7.42,222.87,222.81,4.0372]
[1759370277760,7.42,222.85,222.78,4.0377]
[1759370277966,3.10245459,222.84,222.78,4.0377]
[1759370278159,10.52245459,222.83,222.78,4.0377]
[1759370278359,7.42,222.83,222.78,4.0377]
[1759370278560,7.42,222.83,222.79,7.87]
[1759370278760,7.42,222.83,222.78,4.0377]
[1759370279265,7.42,222.83,222.79,7.87]
[1759370279460,7.42,222.83,222.73,121.39031862]
[1759370279461,2.67846884,222.87,222.77,62.8144]
[1759370279666,3.11184687,222.86,222.8,7.87]
[1759370279862,7.42,222.88,222.8,7.87]
[1759370280069,3.11147907,222.87,222.8,7.87]
[1759370280259,3.11147907,222.86,222.8,7.87]
[1759370280463,3.11147907,222.85,222.83,4.0368]
[1759370280666,7.42,222.92,222.83,4.0368]
[1759370280861,7.42,222.9,222.83,4.0368]
[1759370281066,3.11161103,222.89,222.83,4.0368]
[1759370281262,3.11161103,222.88,222.83,4.0368]
[1759370281456,3.11161103,222.87,222.81,4.0373]
[1759370281656,7.68333204,222.93,222.81,4.0373]
[1759370281657,7.42,222.85,222.81,11.9073]
[1759370281858,7.42,222.85,222.79,7.87]
[1759370282059,7.42,222.92,222.79,7.87]
[1759370282264,3.11171767,222.91,222.79,7.87]
[1759370282465,10.53171767,222.9,222.81,7.87]
[1759370282669,3.11171767,222.89,222.81,7.87]
[1759370282863,3.11171767,222.88,222.81,7.87]
[1759370283063,3.11171767,222.87,222.81,7.87]
[1759370283264,3.11171767,222.86,222.8,62.8058]
[1759370283463,7.42,222.9,222.81,7.87]
[1759370283665,10.53150513,222.89,222.85,7.87]
[1759370283865,3.11150513,222.88,222.85,7.87]
[1759370284069,3.11150513,222.87,222.85,7.87]
[1759370284275,10.09846884,222.93,222.82,62.8001]
[1759370284460,3.11147824,222.92,222.83,7.87]
[1759370284770,3.11147824,222.91,222.83,7.87]
[1759370284974,3.11147824,222.9,222.83,7.87]
[1759370285269,10.53147824,222.89,222.83,7.87]
[1759370285469,7.42,222.87,222.8,110.94]
[1759370285671,2.67846884,222.9,222.83,4.0368]
[1759370285672,7.42,222.85,222.83,4.0368]
[1759370286170,7.42,222.89,222.83,4.0368]
[1759370286372,3.11162476,222.88,222.83,4.0368]
[1759370286665,7.42,222.86,222.83,4.0368]
[1759370286869,7.42,222.84,222.83,4.0368]
[1759370287068,10.53162476,222.84,222.83,4.0368]
[1759370288270,10.53162476,222.84,222.81,4.0373]
[1759370288471,7.42,222.84,222.81,4.0373]
[1759370288765,2.67846884,222.9,222.8,110.94]
[1759370288968,2.67846884,222.87,222.8,110.94]
[1759370289266,10.53166689,222.86,222.79,4.0377]
[1759370289465,3.11166689,222.85,222.79,4.0377]
[1759370289671,3.11166689,222.84,222.79,4.0377]
[1759370289872,3.11166689,222.83,222.81,4.0372]
[1759370290075,7.42,222.88,222.82,7.87]
[1759370290370,10.53148832,222.87,222.83,7.87]
[1759370290571,3.11148832,222.86,222.83,7.87]
[1759370290766,7.42,222.87,222.83,7.87]
[1759370290969,10.53135822,222.86,222.83,7.87]
[1759370291166,7.42,222.86,222.83,7.87]
[1759370291364,7.42,222.91,222.83,62.7966]
[1759370291672,3.11131845,222.9,222.87,7.87]
[1759370291864,3.11131845,222.89,222.87,7.87]
[1759370292069,7.42,222.91,222.87,7.87]
[1759370292364,3.11078196,222.9,222.87,7.87]
[1759370292569,8.196e-05,222.89,222.88,7.87]
[1759370292773,7.42,222.95,222.88,7.87]
[1759370294871,7.42,222.95,222.85,7.87]
[1759370295074,7.42,222.95,222.87,4.0361]
[1759370295370,7.42,222.95,222.81,2.67846884]
[1759370295574,7.42,222.93,222.84,4.0367]
[1759370295775,7.42,222.93,222.83,7.87]
[1759370295975,7.42,222.93,222.84,7.87]
[1759370296674,7.42,222.93,222.86,4.0363]
[1759370300182,7.42,222.93,222.88,4.036]
[1759370300383,7.42,222.94,222.88,4.036]
[1759370304587,3.09619922,222.93,222.88,4.036]
[1759370304793,7.33,222.91,222.88,4.036]
[1759370304993,3.09619922,222.9,222.88,4.036]
[1759370305193,3.09619922,222.89,222.88,4.036]
[1759370306295,3.09619922,222.89,222.86,7.87]
[1759370306498,7.33,222.95,222.86,7.87]
[1759370306692,7.33,222.93,222.86,7.87]
[1759370306893,3.09641934,222.92,222.86,7.87]
[1759370307089,7.33,222.9,222.87,11.3262]
[1759370307291,3.09641934,222.89,222.87,11.3262]
[1759370307491,7.33,222.95,222.87,7.29]
[1759370307693,7.33,222.93,222.87,7.29]
[1759370307893,7.33,222.91,222.87,7.29]